[Event "Early-Titled-Tuesday-Blitz-February-27-2024"]
[Site "Chess.com"]
[Date "2024.02.27"]
[Round "5"]
[White "giomar27"]
[Black "BeardedNM"]
[Result "0-1"]
[WhiteElo "2412"]
[BlackElo "2238"]
[TimeControl "180+1"]
[EndTime "8:51:56 PST"]
[Termination "BeardedNM won by checkmate"]

1. d4 {[%clk 0:03:00.9]} 1... e6 {[%clk 0:03:00.3]} 2. Nc3 {[%clk 0:03:01.1]}
2... d5 {[%clk 0:02:59.7]} 3. Bf4 {[%clk 0:03:01.7]} 3... Nf6 {[%clk 0:02:59.5]}
4. e3 {[%clk 0:03:02.3]} 4... c5 {[%clk 0:02:52.8]} 5. g4 {[%clk 0:03:02.3]}
5... Bd6 {[%clk 0:02:43.3]} 6. g5 {[%clk 0:02:59.4]} 6... Bxf4 {[%clk
0:02:36.6]} 7. gxf6 {[%clk 0:02:45.4]} 7... Bh6 {[%clk 0:02:36.3]} 8. fxg7
{[%clk 0:02:40.6]} 8... Bxg7 {[%clk 0:02:36.3]} 9. Nf3 {[%clk 0:02:40.9]} 9...
Nc6 {[%clk 0:02:31.5]} 10. Rg1 {[%clk 0:02:41.2]} 10... Bf6 {[%clk 0:02:12.9]}
11. Bb5 {[%clk 0:02:24.9]} 11... Bd7 {[%clk 0:02:12.6]} 12. Bxc6 {[%clk
0:02:20.7]} 12... bxc6 {[%clk 0:02:03]} 13. Ne5 {[%clk 0:02:20.3]} 13... Rb8
{[%clk 0:01:36.7]} 14. Qh5 {[%clk 0:02:14.9]} 14... Qe7 {[%clk 0:01:13.6]} 15.
e4 {[%clk 0:02:10.9]} 15... cxd4 {[%clk 0:01:04.7]} 16. Ne2 {[%clk 0:02:04.9]}
16... Rxb2 {[%clk 0:00:45.5]} 17. Nxd7 {[%clk 0:01:59.4]} 17... Qb4+ {[%clk
0:00:20.5]} 18. Kf1 {[%clk 0:01:59.1]} 18... Rb1+ {[%clk 0:00:15.8]} 19. Rxb1
{[%clk 0:01:56.3]} 19... Qxb1+ {[%clk 0:00:15.8]} 20. Kg2 {[%clk 0:01:55]} 20...
Rg8+ {[%clk 0:00:16.1]} 21. Kh3 {[%clk 0:01:55]} 21... Rxg1 {[%clk 0:00:11.1]}
22. Nxf6+ {[%clk 0:01:55.1]} 22... Ke7 {[%clk 0:00:11.7]} 23. Qh4 {[%clk
0:01:46.2]} 23... Qf1# {[%clk 0:00:11.1]} 0-1

[Event "Early-Titled-Tuesday-Blitz-February-27-2024"]
[Site "Chess.com"]
[Date "2024.02.27"]
[Round "5"]
[White "orkinyo12345"]
[Black "Fjal"]
[Result "1-0"]
[WhiteElo "2471"]
[BlackElo "2246"]
[TimeControl "180+1"]
[EndTime "8:51:59 PST"]
[Termination "orkinyo12345 won by resignation"]

1. c4 {[%clk 0:03:00.9]} 1... e5 {[%clk 0:02:50.1]} 2. Nc3 {[%clk 0:02:59.9]}
2... d6 {[%clk 0:02:50.5]} 3. g3 {[%clk 0:02:59.8]} 3... g6 {[%clk 0:02:51.1]}
4. Bg2 {[%clk 0:03:00.3]} 4... Bg7 {[%clk 0:02:51.8]} 5. Nf3 {[%clk 0:03:01]}
5... Nf6 {[%clk 0:02:50]} 6. O-O {[%clk 0:03:01.1]} 6... O-O {[%clk 0:02:50.6]}
7. d4 {[%clk 0:03:01.6]} 7... Nbd7 {[%clk 0:02:47.6]} 8. e4 {[%clk 0:03:00.5]}
8... c6 {[%clk 0:02:41.3]} 9. Be3 {[%clk 0:02:59]} 9... Qe7 {[%clk 0:02:41.2]}
10. Re1 {[%clk 0:02:46]} 10... a5 {[%clk 0:02:28.6]} 11. h3 {[%clk 0:02:45.7]}
11... h6 {[%clk 0:02:28.3]} 12. Qd2 {[%clk 0:02:44.2]} 12... Kh7 {[%clk
0:02:28.9]} 13. Rad1 {[%clk 0:02:44.7]} 13... a4 {[%clk 0:02:26.7]} 14. Qc2
{[%clk 0:02:35.7]} 14... Rd8 {[%clk 0:01:54.1]} 15. c5 {[%clk 0:02:06.9]} 15...
dxc5 {[%clk 0:01:42.6]} 16. dxe5 {[%clk 0:01:49.4]} 16... Ne8 {[%clk 0:01:34.3]}
17. Nxa4 {[%clk 0:01:45.7]} 17... Nxe5 {[%clk 0:01:21]} 18. Nxe5 {[%clk
0:01:31.3]} 18... Rxd1 {[%clk 0:01:13.4]} 19. Rxd1 {[%clk 0:01:28]} 19... Qxe5
{[%clk 0:01:12.5]} 20. Nb6 {[%clk 0:01:18.4]} 20... Rb8 {[%clk 0:00:47.7]} 21.
Bf4 {[%clk 0:01:16.3]} 1-0

[Event "Early-Titled-Tuesday-Blitz-February-27-2024"]
[Site "Chess.com"]
[Date "2024.02.27"]
[Round "5"]
[White "mertfelin"]
[Black "hakanazeri2"]
[Result "0-1"]
[WhiteElo "2313"]
[BlackElo "2607"]
[TimeControl "180+1"]
[EndTime "8:52:02 PST"]
[Termination "hakanazeri2 won by resignation"]

1. e4 {[%clk 0:02:57.4]} 1... c5 {[%clk 0:02:59.9]} 2. Nf3 {[%clk 0:02:57.8]}
2... d6 {[%clk 0:03:00]} 3. d4 {[%clk 0:02:58.4]} 3... cxd4 {[%clk 0:03:00.9]}
4. Nxd4 {[%clk 0:02:59.3]} 4... Nf6 {[%clk 0:03:01.6]} 5. Nc3 {[%clk 0:02:59.9]}
5... a6 {[%clk 0:03:02.3]} 6. Rg1 {[%clk 0:03:00.5]} 6... b5 {[%clk 0:02:54]} 7.
a4 {[%clk 0:02:51.9]} 7... b4 {[%clk 0:02:41.6]} 8. Nd5 {[%clk 0:02:52.5]} 8...
Bb7 {[%clk 0:02:30.7]} 9. Bc4 {[%clk 0:02:50]} 9... Nbd7 {[%clk 0:02:26.4]} 10.
a5 {[%clk 0:02:33.9]} 10... e6 {[%clk 0:02:23]} 11. Nxf6+ {[%clk 0:02:26.3]}
11... Nxf6 {[%clk 0:02:21.6]} 12. Qe2 {[%clk 0:02:15.6]} 12... Nxe4 {[%clk
0:02:06.6]} 13. f3 {[%clk 0:02:14]} 13... Nc5 {[%clk 0:02:05.8]} 14. c3 {[%clk
0:02:14.4]} 14... d5 {[%clk 0:01:58.5]} 15. Ba2 {[%clk 0:01:54.4]} 15... Qxa5
{[%clk 0:01:55.4]} 16. Bd2 {[%clk 0:01:52.8]} 16... b3 {[%clk 0:01:38.8]} 17. c4
{[%clk 0:01:30.3]} 17... Qa4 {[%clk 0:01:36]} 18. cxd5 {[%clk 0:01:04.3]} 18...
Qxd4 {[%clk 0:01:32.3]} 19. Be3 {[%clk 0:00:57.8]} 19... Qd3 {[%clk 0:01:20.5]}
20. Qf2 {[%clk 0:00:51.7]} 20... bxa2 {[%clk 0:01:15.6]} 21. Rxa2 {[%clk
0:00:48.6]} 21... Qb1+ {[%clk 0:01:14.8]} 22. Ke2 {[%clk 0:00:48.7]} 22... Qxa2
{[%clk 0:01:12.2]} 23. Bd4 {[%clk 0:00:48]} 23... Qc4+ {[%clk 0:01:10.9]} 24.
Ke1 {[%clk 0:00:47.7]} 24... Nd3+ {[%clk 0:01:10.5]} 0-1

[Event "Early-Titled-Tuesday-Blitz-February-27-2024"]
[Site "Chess.com"]
[Date "2024.02.27"]
[Round "5"]
[White "BrandonJiang123456"]
[Black "deepfear"]
[Result "0-1"]
[WhiteElo "2169"]
[BlackElo "1983"]
[TimeControl "180+1"]
[EndTime "8:52:08 PST"]
[Termination "deepfear won on time"]

1. e4 {[%clk 0:01:11.4]} 1... c5 {[%clk 0:02:54.5]} 2. Nf3 {[%clk 0:01:10.7]}
2... g6 {[%clk 0:02:50.1]} 3. d4 {[%clk 0:01:09]} 3... cxd4 {[%clk 0:02:47.6]}
4. Qxd4 {[%clk 0:00:53.8]} 4... Nf6 {[%clk 0:02:46.4]} 5. e5 {[%clk 0:00:53.6]}
5... Nc6 {[%clk 0:02:45.8]} 6. Qd2 {[%clk 0:00:47.6]} 6... Ng4 {[%clk
0:02:37.2]} 7. Qc3 {[%clk 0:00:29.8]} 7... Qb6 {[%clk 0:02:05]} 8. Be3 {[%clk
0:00:21.3]} 8... Nxe3 {[%clk 0:02:04.4]} 9. e6 {[%clk 0:00:17.1]} 9... Ng4
{[%clk 0:01:55.1]} 10. exf7+ {[%clk 0:00:11.5]} 10... Kxf7 {[%clk 0:01:52.7]}
11. Ng5+ {[%clk 0:00:10.4]} 11... Kg8 {[%clk 0:01:49.5]} 12. Bc4+ {[%clk
0:00:08.8]} 12... e6 {[%clk 0:01:49.1]} 13. O-O {[%clk 0:00:08.8]} 13... Qd4
{[%clk 0:01:38.5]} 14. Qf3 {[%clk 0:00:07.7]} 14... Nce5 {[%clk 0:01:26.8]} 0-1

[Event "Early-Titled-Tuesday-Blitz-February-27-2024"]
[Site "Chess.com"]
[Date "2024.02.27"]
[Round "5"]
[White "NM_Antelacus"]
[Black "manitodeplomo"]
[Result "0-1"]
[WhiteElo "2258"]
[BlackElo "2651"]
[TimeControl "180+1"]
[EndTime "8:52:11 PST"]
[Termination "manitodeplomo won by resignation"]

1. e4 {[%clk 0:03:00.9]} 1... c5 {[%clk 0:02:47.9]} 2. Nf3 {[%clk 0:03:00.5]}
2... e6 {[%clk 0:02:47.4]} 3. c3 {[%clk 0:02:59.1]} 3... d5 {[%clk 0:02:46.5]}
4. e5 {[%clk 0:02:59.1]} 4... Nc6 {[%clk 0:02:45.2]} 5. d4 {[%clk 0:02:58.6]}
5... Bd7 {[%clk 0:02:45.8]} 6. a3 {[%clk 0:02:56.7]} 6... Rc8 {[%clk 0:02:42.8]}
7. Bd3 {[%clk 0:02:47.6]} 7... cxd4 {[%clk 0:02:40.9]} 8. cxd4 {[%clk 0:02:47]}
8... Qb6 {[%clk 0:02:38.8]} 9. Bc2 {[%clk 0:02:44.5]} 9... g5 {[%clk 0:02:37.8]}
10. h3 {[%clk 0:02:40.9]} 10... Nxd4 {[%clk 0:02:22.6]} 11. Nxd4 {[%clk
0:02:39]} 11... Bc5 {[%clk 0:02:21.8]} 12. Ne2 {[%clk 0:02:03]} 12... Bxf2+
{[%clk 0:02:11.7]} 13. Kf1 {[%clk 0:02:03.2]} 13... f6 {[%clk 0:01:50.8]} 14.
Nbc3 {[%clk 0:01:50.7]} 14... fxe5 {[%clk 0:01:48.5]} 15. Bxg5 {[%clk
0:01:48.8]} 15... Ne7 {[%clk 0:01:42.9]} 16. Bxe7 {[%clk 0:01:46.7]} 16... Kxe7
{[%clk 0:01:41.3]} 17. Rb1 {[%clk 0:01:38]} 17... Rhf8 {[%clk 0:01:39.9]} 18.
Qd3 {[%clk 0:01:29.6]} 18... e4 {[%clk 0:01:30.1]} 19. Nxe4 {[%clk 0:01:23]}
19... dxe4 {[%clk 0:01:29.4]} 20. Qxe4 {[%clk 0:01:21.9]} 20... Bg3+ {[%clk
0:01:11.6]} 0-1

[Event "Early-Titled-Tuesday-Blitz-February-27-2024"]
[Site "Chess.com"]
[Date "2024.02.27"]
[Round "5"]
[White "GeorgiosSouleidis"]
[Black "ValeriyGrinev"]
[Result "1/2-1/2"]
[WhiteElo "2711"]
[BlackElo "2578"]
[TimeControl "180+1"]
[EndTime "8:52:12 PST"]
[Termination "Game drawn by repetition"]

1. e4 {[%clk 0:03:00.9]} 1... c5 {[%clk 0:02:58.9]} 2. Be2 {[%clk 0:03:00.7]}
2... Nc6 {[%clk 0:02:57.8]} 3. d3 {[%clk 0:03:00.1]} 3... g6 {[%clk 0:02:56]} 4.
f4 {[%clk 0:03:00.5]} 4... Bg7 {[%clk 0:02:56]} 5. Nf3 {[%clk 0:03:00.8]} 5...
Nf6 {[%clk 0:02:52.5]} 6. O-O {[%clk 0:03:01]} 6... d5 {[%clk 0:02:52.5]} 7. e5
{[%clk 0:03:00.7]} 7... Ng4 {[%clk 0:02:50.7]} 8. c3 {[%clk 0:02:58.8]} 8... h5
{[%clk 0:02:50.3]} 9. d4 {[%clk 0:02:55.2]} 9... cxd4 {[%clk 0:02:45.1]} 10.
Nxd4 {[%clk 0:02:55.4]} 10... Qb6 {[%clk 0:02:41.9]} 11. Na3 {[%clk 0:02:42.5]}
11... a6 {[%clk 0:02:36.9]} 12. Nc2 {[%clk 0:02:38.3]} 12... e6 {[%clk
0:02:34.7]} 13. h3 {[%clk 0:02:27.1]} 13... Nh6 {[%clk 0:02:33.6]} 14. Kh2
{[%clk 0:02:21.5]} 14... Nf5 {[%clk 0:02:29.7]} 15. Nxf5 {[%clk 0:02:20]} 15...
gxf5 {[%clk 0:02:29.4]} 16. Rb1 {[%clk 0:02:14.4]} 16... h4 {[%clk 0:02:28.7]}
17. Be3 {[%clk 0:02:13.5]} 17... Qa5 {[%clk 0:02:26.1]} 18. a3 {[%clk
0:02:09.7]} 18... Bd7 {[%clk 0:02:25.1]} 19. b4 {[%clk 0:02:06]} 19... Qd8
{[%clk 0:02:23.9]} 20. Nd4 {[%clk 0:02:04.8]} 20... Nxd4 {[%clk 0:02:21]} 21.
Bxd4 {[%clk 0:02:03.8]} 21... Bf8 {[%clk 0:02:19.1]} 22. a4 {[%clk 0:01:55.8]}
22... b5 {[%clk 0:02:15.2]} 23. a5 {[%clk 0:01:53.4]} 23... Be7 {[%clk 0:02:11]}
24. Bd3 {[%clk 0:01:45.1]} 24... Qc7 {[%clk 0:02:00.2]} 25. Qe2 {[%clk
0:01:43.5]} 25... Qc6 {[%clk 0:01:53.5]} 26. Rbc1 {[%clk 0:01:34.3]} 26... O-O-O
{[%clk 0:01:52.3]} 27. Qe3 {[%clk 0:01:31]} 27... Rdg8 {[%clk 0:01:51.3]} 28.
Rf3 {[%clk 0:01:20.3]} 28... Rg6 {[%clk 0:01:35.6]} 29. Rc2 {[%clk 0:01:20.1]}
29... Kb7 {[%clk 0:01:34.7]} 30. Qe1 {[%clk 0:01:14.7]} 30... Rhg8 {[%clk
0:01:31.2]} 31. Rcf2 {[%clk 0:01:08.8]} 31... Qc8 {[%clk 0:01:22]} 32. Qe3
{[%clk 0:01:06]} 32... Bc6 {[%clk 0:01:20.7]} 33. Bf1 {[%clk 0:01:03.7]} 33...
R8g7 {[%clk 0:01:19.1]} 34. Kh1 {[%clk 0:01:03.7]} 34... Rg8 {[%clk 0:01:14.6]}
35. Kh2 {[%clk 0:01:03.9]} 35... R8g7 {[%clk 0:01:14.9]} 36. Kh1 {[%clk
0:01:04.5]} 36... Rg8 {[%clk 0:01:15]} 37. Kh2 {[%clk 0:01:05.1]} 1/2-1/2

[Event "Early-Titled-Tuesday-Blitz-February-27-2024"]
[Site "Chess.com"]
[Date "2024.02.27"]
[Round "5"]
[White "amelia91"]
[Black "publicaccountcze"]
[Result "0-1"]
[WhiteElo "1975"]
[BlackElo "2242"]
[TimeControl "180+1"]
[EndTime "8:52:13 PST"]
[Termination "publicaccountcze won by resignation"]

1. d4 {[%clk 0:03:00.9]} 1... d5 {[%clk 0:02:53.6]} 2. Nf3 {[%clk 0:02:57.8]}
2... Nf6 {[%clk 0:02:49.9]} 3. e3 {[%clk 0:02:57.7]} 3... e6 {[%clk 0:02:49.8]}
4. Bd3 {[%clk 0:02:57]} 4... c5 {[%clk 0:02:49.2]} 5. Nc3 {[%clk 0:02:56.8]}
5... Nc6 {[%clk 0:02:49.3]} 6. dxc5 {[%clk 0:02:53.7]} 6... Bxc5 {[%clk
0:02:49]} 7. O-O {[%clk 0:02:53.6]} 7... O-O {[%clk 0:02:48.6]} 8. b3 {[%clk
0:02:53.3]} 8... e5 {[%clk 0:02:33.8]} 9. Bb5 {[%clk 0:02:50.8]} 9... Bg4 {[%clk
0:02:27.9]} 10. Be2 {[%clk 0:02:49.7]} 10... Qd7 {[%clk 0:02:19.2]} 11. Bb2
{[%clk 0:02:47.6]} 11... Rfd8 {[%clk 0:02:06.4]} 12. h3 {[%clk 0:02:41.7]} 12...
Bf5 {[%clk 0:01:54.3]} 13. Na4 {[%clk 0:02:28.3]} 13... Bd6 {[%clk 0:01:48.7]}
14. c4 {[%clk 0:02:09.7]} 14... Bxh3 {[%clk 0:01:41]} 15. gxh3 {[%clk
0:02:06.8]} 15... Qxh3 {[%clk 0:01:41.9]} 16. Nh2 {[%clk 0:01:51.9]} 16... e4
{[%clk 0:01:39.9]} 17. f4 {[%clk 0:01:47.9]} 17... exf3 {[%clk 0:01:39.7]} 18.
Nxf3 {[%clk 0:01:47.5]} 18... Qg3+ {[%clk 0:01:34.1]} 19. Kh1 {[%clk 0:01:46.5]}
19... Ng4 {[%clk 0:01:21.3]} 20. cxd5 {[%clk 0:01:12.9]} 20... Qh3+ {[%clk
0:00:58.2]} 21. Kg1 {[%clk 0:01:11.9]} 21... Nxe3 {[%clk 0:00:37.1]} 0-1

[Event "Early-Titled-Tuesday-Blitz-February-27-2024"]
[Site "Chess.com"]
[Date "2024.02.27"]
[Round "5"]
[White "MikeSailer"]
[Black "Grandmaster1369"]
[Result "0-1"]
[WhiteElo "2166"]
[BlackElo "2763"]
[TimeControl "180+1"]
[EndTime "8:52:14 PST"]
[Termination "Grandmaster1369 won by resignation"]

1. d4 {[%clk 0:01:26.2]} 1... Nf6 {[%clk 0:02:59.3]} 2. Nf3 {[%clk 0:01:24.6]}
2... e6 {[%clk 0:02:57.8]} 3. Bf4 {[%clk 0:01:13.5]} 3... c5 {[%clk 0:02:56.7]}
4. e3 {[%clk 0:01:12.5]} 4... Nc6 {[%clk 0:02:55.5]} 5. c3 {[%clk 0:01:11.2]}
5... d5 {[%clk 0:02:55.8]} 6. Be2 {[%clk 0:01:11.4]} 6... Bd6 {[%clk 0:02:56.2]}
7. O-O {[%clk 0:01:11.2]} 7... O-O {[%clk 0:02:53.7]} 8. Nbd2 {[%clk 0:01:10.1]}
8... b6 {[%clk 0:02:37.2]} 9. Ne5 {[%clk 0:00:58.1]} 9... Bb7 {[%clk 0:02:36.9]}
10. Nxc6 {[%clk 0:00:52.7]} 10... Bxc6 {[%clk 0:02:36.9]} 11. Bxd6 {[%clk
0:00:52.9]} 11... Qxd6 {[%clk 0:02:37.8]} 12. a3 {[%clk 0:00:49.9]} 12... e5
{[%clk 0:02:37.4]} 13. b4 {[%clk 0:00:48.6]} 13... cxd4 {[%clk 0:02:07.1]} 14.
cxd4 {[%clk 0:00:46.2]} 14... exd4 {[%clk 0:02:07.1]} 15. exd4 {[%clk
0:00:46.3]} 15... Qf4 {[%clk 0:02:07.4]} 16. Nf3 {[%clk 0:00:45.3]} 16... Rfe8
{[%clk 0:01:52.1]} 17. Re1 {[%clk 0:00:45.3]} 17... Ne4 {[%clk 0:01:49.4]} 18.
Rc1 {[%clk 0:00:44.7]} 18... Bd7 {[%clk 0:01:47.3]} 19. h3 {[%clk 0:00:42.2]}
19... Re6 {[%clk 0:01:42.9]} 20. Rf1 {[%clk 0:00:36.3]} 20... Rh6 {[%clk
0:01:37.3]} 21. Ne5 {[%clk 0:00:27.4]} 21... Bxh3 {[%clk 0:01:37.3]} 22. Bf3
{[%clk 0:00:14.2]} 22... Bxg2 {[%clk 0:01:35.3]} 0-1

[Event "Early-Titled-Tuesday-Blitz-February-27-2024"]
[Site "Chess.com"]
[Date "2024.02.27"]
[Round "5"]
[White "Klavdia_Nik"]
[Black "davigator"]
[Result "0-1"]
[WhiteElo "2128"]
[BlackElo "2403"]
[TimeControl "180+1"]
[EndTime "8:52:17 PST"]
[Termination "davigator won on time"]

1. Nf3 {[%clk 0:03:00]} 1... Nf6 {[%clk 0:02:58.8]} 2. c4 {[%clk 0:02:58.2]}
2... g6 {[%clk 0:02:58.9]} 3. b3 {[%clk 0:02:57.7]} 3... Bg7 {[%clk 0:02:58.9]}
4. Bb2 {[%clk 0:02:58.3]} 4... O-O {[%clk 0:02:59.2]} 5. g3 {[%clk 0:02:57.2]}
5... a5 {[%clk 0:02:59.6]} 6. Nc3 {[%clk 0:02:54.7]} 6... c6 {[%clk 0:02:57.4]}
7. Bg2 {[%clk 0:02:54.4]} 7... d6 {[%clk 0:02:56.3]} 8. d4 {[%clk 0:02:53.3]}
8... Na6 {[%clk 0:02:55.2]} 9. O-O {[%clk 0:02:52.4]} 9... Bf5 {[%clk 0:02:54]}
10. Nh4 {[%clk 0:02:49.6]} 10... Bd7 {[%clk 0:02:52.6]} 11. Re1 {[%clk 0:02:39]}
11... e5 {[%clk 0:02:42.1]} 12. e4 {[%clk 0:02:21.8]} 12... Bg4 {[%clk
0:02:36.3]} 13. f3 {[%clk 0:02:08.1]} 13... Bc8 {[%clk 0:02:30.6]} 14. Ne2
{[%clk 0:02:06]} 14... Qc7 {[%clk 0:02:26.6]} 15. Qd2 {[%clk 0:02:00.5]} 15...
Re8 {[%clk 0:02:24.8]} 16. Rad1 {[%clk 0:01:58.9]} 16... Nb4 {[%clk 0:02:23]}
17. a3 {[%clk 0:01:55.8]} 17... Na6 {[%clk 0:02:23]} 18. g4 {[%clk 0:01:34.2]}
18... Nd7 {[%clk 0:02:15.9]} 19. Ng3 {[%clk 0:01:28.2]} 19... Nf8 {[%clk
0:02:14.6]} 20. Bf1 {[%clk 0:01:19.1]} 20... Qe7 {[%clk 0:02:06.2]} 21. Ng2
{[%clk 0:01:17.4]} 21... Ne6 {[%clk 0:02:04.5]} 22. d5 {[%clk 0:01:16.1]} 22...
Nd4 {[%clk 0:02:01.1]} 23. Bxd4 {[%clk 0:01:09.1]} 23... exd4 {[%clk 0:02:00.5]}
24. dxc6 {[%clk 0:01:07.7]} 24... bxc6 {[%clk 0:01:59.7]} 25. Nf4 {[%clk
0:01:04.4]} 25... Nc5 {[%clk 0:01:56.7]} 26. Rb1 {[%clk 0:00:57.8]} 26... Bh6
{[%clk 0:01:49.8]} 27. Nge2 {[%clk 0:00:21.8]} 27... d3 {[%clk 0:01:49.2]} 0-1

[Event "Early-Titled-Tuesday-Blitz-February-27-2024"]
[Site "Chess.com"]
[Date "2024.02.27"]
[Round "5"]
[White "LiadCuba"]
[Black "Alexei_Gubajdullin"]
[Result "0-1"]
[WhiteElo "2494"]
[BlackElo "2645"]
[TimeControl "180+1"]
[EndTime "8:52:18 PST"]
[Termination "Alexei_Gubajdullin won on time"]

1. d4 {[%clk 0:03:00.9]} 1... Nf6 {[%clk 0:02:59.3]} 2. c4 {[%clk 0:03:00.2]}
2... g6 {[%clk 0:02:58.3]} 3. Nc3 {[%clk 0:03:00.4]} 3... Bg7 {[%clk 0:02:57.8]}
4. e4 {[%clk 0:03:00.5]} 4... d6 {[%clk 0:02:58]} 5. Be2 {[%clk 0:03:00.8]} 5...
O-O {[%clk 0:02:57.8]} 6. Be3 {[%clk 0:03:01.2]} 6... Na6 {[%clk 0:02:57.3]} 7.
h4 {[%clk 0:02:48.4]} 7... e5 {[%clk 0:02:57]} 8. d5 {[%clk 0:02:48.2]} 8... Nc5
{[%clk 0:02:56.6]} 9. Qc2 {[%clk 0:02:46.2]} 9... a5 {[%clk 0:02:51.2]} 10. h5
{[%clk 0:02:45.2]} 10... Nxh5 {[%clk 0:02:29.9]} 11. Bxh5 {[%clk 0:02:46.1]}
11... gxh5 {[%clk 0:02:29]} 12. Rxh5 {[%clk 0:02:47]} 12... Qe8 {[%clk
0:02:26.9]} 13. Bh6 {[%clk 0:01:30.7]} 13... f6 {[%clk 0:02:14.5]} 14. Rh2
{[%clk 0:01:24.2]} 14... Qg6 {[%clk 0:02:11.6]} 15. Bxg7 {[%clk 0:01:23.4]}
15... Qxg7 {[%clk 0:02:10.4]} 16. Nge2 {[%clk 0:00:45.1]} 16... f5 {[%clk
0:02:10]} 17. Ng3 {[%clk 0:00:45.2]} 17... fxe4 {[%clk 0:02:10]} 18. Ncxe4
{[%clk 0:00:45.7]} 18... Nxe4 {[%clk 0:02:06.5]} 19. Nxe4 {[%clk 0:00:30.3]}
19... Bf5 {[%clk 0:02:05.6]} 20. O-O-O {[%clk 0:00:17.5]} 20... a4 {[%clk
0:02:02.5]} 21. Rdh1 {[%clk 0:00:16.1]} 21... a3 {[%clk 0:02:01.2]} 22. b3
{[%clk 0:00:16.1]} 22... Bg6 {[%clk 0:01:58.8]} 23. f3 {[%clk 0:00:14.3]} 23...
Rf4 {[%clk 0:01:58.3]} 24. Rh4 {[%clk 0:00:12.8]} 24... Raf8 {[%clk 0:01:57.7]}
25. Qd3 {[%clk 0:00:07.9]} 25... Bxe4 {[%clk 0:01:49.7]} 26. fxe4 {[%clk
0:00:07.5]} 26... Rxh4 {[%clk 0:01:49]} 27. Rxh4 {[%clk 0:00:02]} 27... Qxg2
{[%clk 0:01:48.5]} 0-1

[Event "Early-Titled-Tuesday-Blitz-February-27-2024"]
[Site "Chess.com"]
[Date "2024.02.27"]
[Round "5"]
[White "Kostya0705"]
[Black "ChadBiryani"]
[Result "1-0"]
[WhiteElo "2579"]
[BlackElo "2415"]
[TimeControl "180+1"]
[EndTime "8:52:26 PST"]
[Termination "Kostya0705 won on time"]

1. e4 {[%clk 0:03:00.1]} 1... d6 {[%clk 0:02:55.9]} 2. d4 {[%clk 0:02:59.9]}
2... Nf6 {[%clk 0:02:56.4]} 3. Nc3 {[%clk 0:03:00.5]} 3... e5 {[%clk 0:02:56.5]}
4. Nf3 {[%clk 0:03:00.7]} 4... Nbd7 {[%clk 0:02:56.3]} 5. Bc4 {[%clk 0:03:01]}
5... Be7 {[%clk 0:02:55.7]} 6. a4 {[%clk 0:03:01.5]} 6... O-O {[%clk 0:02:51.8]}
7. O-O {[%clk 0:03:01.9]} 7... c6 {[%clk 0:02:51.9]} 8. Ba2 {[%clk 0:03:00.4]}
8... h6 {[%clk 0:02:51.6]} 9. h3 {[%clk 0:03:00.1]} 9... Re8 {[%clk 0:02:46.9]}
10. Re1 {[%clk 0:02:59.7]} 10... Qc7 {[%clk 0:02:44.2]} 11. Be3 {[%clk
0:02:59.3]} 11... exd4 {[%clk 0:02:39.4]} 12. Bxd4 {[%clk 0:02:58.1]} 12... Nc5
{[%clk 0:02:39.9]} 13. e5 {[%clk 0:02:52.6]} 13... dxe5 {[%clk 0:02:36.3]} 14.
Bxe5 {[%clk 0:02:52.7]} 14... Qd7 {[%clk 0:02:19.3]} 15. Qc1 {[%clk 0:02:44.6]}
15... a5 {[%clk 0:02:06.5]} 16. Qf4 {[%clk 0:02:42.7]} 16... Qf5 {[%clk
0:02:00.7]} 17. Qh2 {[%clk 0:02:35.9]} 17... Nfe4 {[%clk 0:01:49.2]} 18. Ne2
{[%clk 0:02:25.9]} 18... Qh7 {[%clk 0:01:24.6]} 19. Ned4 {[%clk 0:02:23.4]}
19... Bf8 {[%clk 0:01:12.7]} 20. Qf4 {[%clk 0:02:16.5]} 20... Be6 {[%clk
0:00:55.6]} 21. Nxe6 {[%clk 0:02:08.3]} 21... fxe6 {[%clk 0:00:52.6]} 22. Nd4
{[%clk 0:02:08.5]} 22... g5 {[%clk 0:00:27.9]} 23. Qg4 {[%clk 0:02:02.5]} 23...
Qf7 {[%clk 0:00:23.5]} 24. Rxe4 {[%clk 0:01:57.6]} 24... Nxe4 {[%clk 0:00:23.5]}
25. Qxe4 {[%clk 0:01:58.3]} 25... Rad8 {[%clk 0:00:17.6]} 26. Qg4 {[%clk
0:01:56.3]} 26... Bc5 {[%clk 0:00:05.7]} 27. Nxe6 {[%clk 0:01:46.6]} 27... Qxf2+
{[%clk 0:00:04.1]} 28. Kh1 {[%clk 0:01:47]} 28... Rxe6 {[%clk 0:00:03.1]} 29.
Bxe6+ {[%clk 0:01:44]} 29... Kh7 {[%clk 0:00:01.9]} 30. Qe4+ {[%clk 0:01:42.5]}
1-0

[Event "Early-Titled-Tuesday-Blitz-February-27-2024"]
[Site "Chess.com"]
[Date "2024.02.27"]
[Round "5"]
[White "Flaccidmoves"]
[Black "Batica1984"]
[Result "0-1"]
[WhiteElo "2445"]
[BlackElo "2746"]
[TimeControl "180+1"]
[EndTime "8:52:28 PST"]
[Termination "Batica1984 won by resignation"]

1. e4 {[%clk 0:02:42.4]} 1... c5 {[%clk 0:02:58.4]} 2. Nf3 {[%clk 0:02:42]} 2...
e6 {[%clk 0:02:58.4]} 3. d4 {[%clk 0:02:42]} 3... cxd4 {[%clk 0:02:58.3]} 4.
Nxd4 {[%clk 0:02:42.9]} 4... Nc6 {[%clk 0:02:57.7]} 5. Nc3 {[%clk 0:02:38.1]}
5... Qc7 {[%clk 0:02:56.7]} 6. g3 {[%clk 0:02:37.2]} 6... a6 {[%clk 0:02:55.9]}
7. Bg2 {[%clk 0:02:36.5]} 7... Nf6 {[%clk 0:02:54.8]} 8. O-O {[%clk 0:02:36]}
8... Bc5 {[%clk 0:02:55.4]} 9. Be3 {[%clk 0:02:24.1]} 9... Ne5 {[%clk
0:02:53.9]} 10. h3 {[%clk 0:02:19.9]} 10... b5 {[%clk 0:02:42.9]} 11. Ndxb5
{[%clk 0:02:07.8]} 11... axb5 {[%clk 0:02:42.5]} 12. Nxb5 {[%clk 0:02:08.1]}
12... Qb6 {[%clk 0:02:42.9]} 13. Bxc5 {[%clk 0:02:08]} 13... Qxc5 {[%clk
0:02:43]} 14. Nd6+ {[%clk 0:02:07.8]} 14... Ke7 {[%clk 0:02:43.4]} 15. Nxc8+
{[%clk 0:01:54.8]} 15... Rhxc8 {[%clk 0:02:37.4]} 16. c3 {[%clk 0:01:53.3]}
16... Rab8 {[%clk 0:02:37]} 17. Qe2 {[%clk 0:01:50.4]} 17... Qb5 {[%clk
0:02:33.7]} 18. Qxb5 {[%clk 0:01:43.9]} 18... Rxb5 {[%clk 0:02:33.2]} 19. f4
{[%clk 0:01:44.4]} 19... Nd3 {[%clk 0:02:26.6]} 20. e5 {[%clk 0:01:41.8]} 20...
Nd5 {[%clk 0:02:26]} 21. a4 {[%clk 0:00:46.6]} 21... Rxb2 {[%clk 0:02:23.7]} 22.
Bxd5 {[%clk 0:00:36.5]} 22... exd5 {[%clk 0:02:23.1]} 23. a5 {[%clk 0:00:25.6]}
23... Rxc3 {[%clk 0:02:19]} 24. a6 {[%clk 0:00:24.7]} 24... Rcc2 {[%clk
0:02:18.9]} 25. Rf3 {[%clk 0:00:18.7]} 25... Rg2+ {[%clk 0:02:05.9]} 26. Kh1
{[%clk 0:00:18.6]} 26... Rh2+ {[%clk 0:02:03.3]} 27. Kg1 {[%clk 0:00:18.9]}
27... Rbg2+ {[%clk 0:01:59]} 28. Kf1 {[%clk 0:00:19.3]} 28... Nc5 {[%clk
0:01:38.1]} 29. a7 {[%clk 0:00:18]} 29... Rh1+ {[%clk 0:01:37.6]} 30. Kxg2
{[%clk 0:00:18.6]} 30... Rxa1 {[%clk 0:01:37.8]} 31. Rd3 {[%clk 0:00:18.5]}
31... Nxd3 {[%clk 0:01:29.8]} 0-1